fUST/lending_fUST_20250906
["ID","MTS","AMOUNT","RATE_DAILY","PERIOD"]
[383801424,1757121047483,-480.0,0.00013972,2]
[383801425,1757121047493,-480.0,0.00013972,2]
[383801426,1757121047502,-480.0,0.00013972,2]
[383801427,1757121047513,-480.0,0.00013972,2]
[383801428,1757121047523,-480.0,0.00013972,2]
[383801429,1757121047532,-480.0,0.00013972,2]
[383801430,1757121047542,-480.0,0.00013972,2]
[383801431,1757121047552,-480.0,0.00013972,2]
[383801432,1757121047561,-480.0,0.00013972,2]
[383801433,1757121047570,-480.0,0.00013972,2]
[383801434,1757121047580,-494.52175418,0.00013972,2]
[383801435,1757121047590,-480.0,0.00013972,2]
[383801436,1757121047600,-1355.56,0.00013972,2]
[383801437,1757121047609,-22318.87,0.00013972,2]
[383801438,1757121047621,-480.0,0.00013972,2]
[383801439,1757121047631,-514.6,0.00013972,2]
[383801440,1757121047644,-480.0,0.00013972,2]
[383801441,1757121047655,-480.0,0.00013972,2]
[383801442,1757121047666,-480.0,0.00013972,2]
[383801443,1757121047676,-563.1,0.00013972,2]
[383801444,1757121047686,-480.0,0.00013972,2]
[383801445,1757121047695,-480.0,0.00013972,2]
[383801446,1757121047704,-480.0,0.00013972,2]
[383801447,1757121047714,-480.0,0.00013972,2]
[383801448,1757121047723,-279.29495814,0.00013972,2]
[383801449,1757121047734,-480.0,0.00013972,2]
[383801450,1757121047745,-480.0,0.00013972,2]
[383801451,1757121047755,-480.0,0.00013972,2]
[383801452,1757121047765,-480.0,0.00013972,2]
[383801453,1757121047775,-480.0,0.00013972,2]
[383801454,1757121047785,-480.0,0.00013972,2]
[383801455,1757121047797,-480.0,0.00013972,2]
[383801456,1757121047806,-480.0,0.00013972,2]
[383801457,1757121047816,-480.0,0.00013972,2]
[383801458,1757121047826,-157.0,0.00013972,2]
[383801459,1757121047837,-480.0,0.00013972,2]
[383801460,1757121047848,-480.0,0.00013972,2]
[383801461,1757121047860,-157.0,0.00013972,2]
[383801462,1757121047871,-480.0,0.00013972,2]
[383801463,1757121047880,-480.0,0.00013972,2]
[383801464,1757121047889,-480.0,0.00013972,2]
[383801465,1757121047898,-480.0,0.00013972,2]
[383801466,1757121047908,-480.0,0.00013972,2]
[383801467,1757121047917,-480.0,0.00013972,2]
[383801468,1757121047927,-810.16,0.00013972,2]
[383801469,1757121047936,-480.0,0.00013972,2]
[383801470,1757121047945,-480.0,0.00013972,2]
[383801471,1757121047955,-486.09044466,0.00013972,2]
[383801472,1757121047966,-480.0,0.00013972,2]
[383801473,1757121047975,-480.0,0.00013972,2]
[383801474,1757121047986,-480.0,0.00013972,2]
[383801475,1757121047997,-480.0,0.00013972,2]
[383801476,1757121048006,-480.0,0.00013972,2]
[383801477,1757121048016,-480.0,0.00013972,2]
[383801478,1757121048026,-480.0,0.00013972,2]
[383801479,1757121048036,-506.26754925,0.00013972,2]
[383801480,1757121048048,-480.0,0.00013972,2]
[383801481,1757121048058,-480.0,0.00013972,2]
[383801482,1757121048069,-480.0,0.00013972,2]
[383801483,1757121048079,-480.0,0.00013972,2]
[383801484,1757121048089,-480.0,0.00013972,2]
[383801485,1757121048099,-480.0,0.00013972,2]
[383801486,1757121048108,-480.0,0.00013972,2]
[383801487,1757121048118,-480.0,0.00013972,2]
[383801488,1757121048129,-480.0,0.00013972,2]
[383801489,1757121048139,-480.0,0.00013972,2]
[383801490,1757121048148,-480.0,0.00013972,2]
[383801491,1757121048157,-480.0,0.00013972,2]
[383801492,1757121048166,-480.0,0.00013972,2]
[383801493,1757121048176,-480.0,0.00013972,2]
[383801494,1757121048185,-480.0,0.00013972,2]
[383801495,1757121048195,-480.0,0.00013972,2]
[383801496,1757121048204,-480.0,0.00013972,2]
[383801497,1757121048214,-480.0,0.00013972,2]
[383801498,1757121048223,-480.0,0.00013972,2]
[383801499,1757121048233,-480.0,0.00013972,2]
[383801500,1757121048244,-480.0,0.00013972,2]
[383801501,1757121048253,-480.0,0.00013972,2]
[383801502,1757121048263,-480.0,0.00013972,2]
[383801503,1757121048273,-480.0,0.00013972,2]
[383801504,1757121048283,-480.0,0.00013972,2]
[383801505,1757121048293,-480.0,0.00013972,2]
[383801506,1757121048302,-480.0,0.00013972,2]
[383801507,1757121048312,-480.0,0.00013972,2]
[383801508,1757121048322,-480.0,0.00013972,2]
[383801509,1757121048331,-480.0,0.00013972,2]
[383801510,1757121048341,-480.0,0.00013972,2]
[383801511,1757121048351,-480.0,0.00013972,2]
[383801512,1757121048360,-480.0,0.00013972,2]
[383801513,1757121048370,-480.0,0.00013972,2]
[383801514,1757121048380,-179.03,0.00013972,2]
[383801515,1757121048389,-480.0,0.00013972,2]
[383801516,1757121048399,-480.0,0.00013972,2]
[383801517,1757121048408,-480.0,0.00013972,2]
[383801518,1757121048418,-481.47592958,0.00013972,2]
[383801519,1757121048427,-534.55,0.00013972,2]
[383801520,1757121048436,-480.0,0.00013972,2]
[383801521,1757121048447,-480.0,0.00013972,2]
[383801522,1757121048457,-480.0,0.00013972,2]
[383801523,1757121048466,-480.0,0.00013972,2]
[383801524,1757121048476,-480.0,0.00013972,2]
[383801525,1757121048485,-4579.9,0.00013972,2]
[383801526,1757121048495,-480.0,0.00013972,2]
[383801527,1757121048504,-480.0,0.00013972,2]
[383801528,1757121048514,-339.40315556,0.00013972,2]
[383801529,1757121048524,-480.0,0.00013972,2]
[383801530,1757121048536,-480.0,0.00013972,2]
[383801531,1757121048545,-318.97572382,0.00013972,2]
[383801532,1757121048554,-480.0,0.00013972,2]
[383801533,1757121048564,-480.0,0.00013972,2]
[383801534,1757121048574,-480.0,0.00013972,2]
[383801535,1757121048583,-480.0,0.00013972,2]
[383801536,1757121048592,-480.0,0.00013972,2]
[383801537,1757121048602,-4113.55,0.00013972,2]
[383801538,1757121048611,-480.0,0.00013972,2]
[383801539,1757121048620,-480.0,0.00013972,2]
[383801540,1757121048629,-480.0,0.00013972,2]
[383801541,1757121048639,-480.0,0.00013972,2]
[383801542,1757121048648,-480.0,0.00013972,2]
[383801543,1757121048657,-480.0,0.00013972,2]
[383801544,1757121048667,-480.0,0.00013972,2]
[383801545,1757121048676,-273.55158053,0.00013972,2]
[383801546,1757121048685,-480.0,0.00013972,2]
[383801547,1757121048695,-480.0,0.00013972,2]
[383801548,1757121048704,-480.0,0.00013972,2]
[383801549,1757121048713,-1000.0,0.00013972,2]
[383801550,1757121048723,-545.25,0.00013972,2]
[383801551,1757121048733,-480.0,0.00013972,2]
[383801552,1757121048742,-480.0,0.00013972,2]
[383801553,1757121048753,-480.0,0.00013972,2]
[383801554,1757121048763,-480.0,0.00013972,2]
[383801555,1757121048774,-480.0,0.00013972,2]
[383801556,1757121048783,-480.0,0.00013972,2]
[383801557,1757121048793,-480.0,0.00013972,2]
[383801558,1757121048803,-480.0,0.00013972,2]
[383801559,1757121048812,-480.0,0.00013972,2]
[383801560,1757121048822,-480.0,0.00013972,2]
[383801561,1757121048832,-480.0,0.00013972,2]
[383801562,1757121048842,-424.96,0.00013972,2]
[383801563,1757121048852,-647.48,0.00013972,2]
[383801564,1757121048863,-480.0,0.00013972,2]
[383801565,1757121048872,-480.0,0.00013972,2]
[383801566,1757121048882,-480.0,0.00013972,2]
[383801567,1757121048891,-480.0,0.00013972,2]
[383801568,1757121048902,-738.02,0.00013972,2]
[383801569,1757121048912,-480.0,0.00013972,2]
[383801570,1757121048921,-334.26327119,0.00013972,2]
[383801571,1757121048930,-480.0,0.00013972,2]
[383801572,1757121048939,-1230.33,0.00013972,2]
[383801573,1757121048950,-490.93141517,0.00013972,2]
[383801574,1757121048959,-157.0,0.00013972,2]
[383801575,1757121048969,-480.0,0.00013972,2]
[383801576,1757121048980,-480.0,0.00013972,2]
[383801577,1757121048989,-480.0,0.00013972,2]
[383801578,1757121048999,-480.0,0.00013972,2]
[383801579,1757121049008,-185.56398922,0.00013972,2]
[383801580,1757121049019,-627.13,0.00013972,2]
[383801581,1757121049030,-480.0,0.00013972,2]
[383801582,1757121049040,-480.0,0.00013972,2]
[383801583,1757121049058,-480.0,0.00013972,2]
[383801584,1757121049068,-480.0,0.00013972,2]
[383801585,1757121049080,-480.0,0.00013972,2]
[383801586,1757121049091,-480.0,0.00013972,2]
[383801587,1757121049104,-480.0,0.00013972,2]
[383801588,1757121049116,-480.0,0.00013972,2]
[383801589,1757121049127,-511.01349149,0.00013972,2]
[383801590,1757121049137,-480.0,0.00013972,2]
[383801591,1757121049148,-480.0,0.00013972,2]
[383801592,1757121049159,-500.0,0.00013973,2]
[383801593,1757121049172,-500.0,0.00013973,2]
[383801594,1757121049183,-100000.0,0.0001399,2]
[383801595,1757121049194,-187.9157488,0.0001399,2]
[383801596,1757121049205,-151.0,0.00014,2]
[383801597,1757121049217,-6718.19526176,0.00014087,2]
[383801598,1757121049229,-151.0,0.00014087,2]
[383801599,1757121049240,-2347.87260389,0.00014087,2]
[383801600,1757121049252,-151.0,0.00014087,2]
[383801601,1757121049263,-151.0,0.00014087,2]
[383801602,1757121049276,-151.0,0.00014087,2]
[383801603,1757121049287,-151.0,0.00014087,2]
[383801604,1757121049301,-151.0,0.00014087,2]
[383801605,1757121049313,-181.08010149,0.00014087,2]
[383801606,1757121049325,-151.0,0.00014087,2]
[383801607,1757121049336,-151.0,0.00014087,2]
[383801608,1757121049347,-151.0,0.00014087,2]
[383801609,1757121049359,-151.0,0.00014087,2]
[383801610,1757121049369,-151.0,0.00014087,2]
[383801611,1757121049380,-151.0,0.00014087,2]
[383801612,1757121049392,-151.0,0.00014087,2]
[383801613,1757121049403,-151.0,0.00014087,2]
[383801614,1757121049415,-151.0,0.000141,2]
[383801615,1757121049426,-151.0,0.000141,2]
[383801616,1757121049437,-187.9157488,0.00014121,2]
[383801617,1757121049449,-151.0,0.000142,2]
[383801618,1757121049459,-151.0,0.000142,2]
[383801619,1757121049471,-37079.922957,0.00014201,2]
[383801620,1757121049481,-10119.7498071,0.00014201,2]
[383801621,1757121049492,-2576.8531909,0.00014201,2]
[383801622,1757121049503,-151.0,0.00014201,2]
[383801623,1757121049513,-151.0,0.00014201,2]
[383801624,1757121049526,-3155.3608377,0.00014201,2]
[383801625,1757121049538,-151.0,0.00014201,2]
[383801626,1757121049549,-151.0,0.00014201,2]
[383801627,1757121049559,-16952.4828083,0.0001422,2]
[383801628,1757121049569,-151.0,0.0001422,2]
[383801629,1757121049581,-151.0,0.0001422,2]
[383801630,1757121049592,-151.0,0.0001422,2]
[383801631,1757121049603,-151.0,0.0001422,2]
[383801632,1757121049614,-151.0,0.0001422,2]
[383801633,1757121049720,-151.0,0.0001422,2]
[383801634,1757121049731,-241.004239,0.0001422,2]
[383801635,1757121049742,-151.0,0.0001422,2]
[383801636,1757121049752,-254.952377,0.0001422,2]
[383801637,1757121049762,-254.952377,0.0001422,2]
[383801638,1757121049773,-254.952377,0.0001422,2]
[383801639,1757121049783,-151.0,0.0001422,2]
[383801640,1757121049793,-254.952377,0.0001422,2]
[383801641,1757121049804,-1000.0,0.00014221,2]
[383801642,1757121049815,-1000.0,0.00014221,2]
[383801643,1757121049824,-265.83721839,0.00014221,2]
[383801644,1757121049834,-664.89562748,0.00014221,2]
[383801645,1757121049845,-613.88843103,0.00014221,2]
[383801646,1757121049855,-1000.0,0.00014221,2]
[383801647,1757121049864,-1000.0,0.00014221,2]
[383801648,1757121049875,-500.0,0.00014221,2]
[383801649,1757121049886,-500.0,0.00014221,2]
[383801650,1757121049898,-1000.0,0.00014221,2]
[383801651,1757121049910,-1000.0,0.00014221,2]
[383801652,1757121049921,-1000.0,0.00014221,2]
[383801653,1757121049932,-1000.0,0.00014221,2]
[383801654,1757121049942,-1000.0,0.00014221,2]
[383801655,1757121049953,-1000.0,0.00014221,2]
[383801656,1757121049963,-501.07951554,0.00014221,2]
[383801657,1757121049974,-1000.0,0.00014221,2]
[383801658,1757121049984,-151.0,0.00014221,2]
[383801659,1757121049994,-153.683967,0.00014221,2]
[383801660,1757121050005,-157.0,0.00014246,2]
[383801661,1757121050015,-290.94,0.00014246,2]
[383801662,1757121050025,-165.64885996,0.00014246,2]
[383801663,1757121050035,-155.5625941,0.00014246,2]
[383801664,1757121050046,-480.0,0.00014246,2]
[383801665,1757121050057,-480.0,0.00014246,2]
[383801666,1757121050067,-480.0,0.00014246,2]
[383801667,1757121050077,-480.0,0.00014246,2]
[383801668,1757121050087,-480.0,0.00014246,2]
[383801669,1757121050097,-480.0,0.00014246,2]
[383801670,1757121050107,-249.0,0.00014246,2]
[383801671,1757121050119,-515.67,0.00014246,2]
[383801672,1757121050128,-480.0,0.00014246,2]
[383801673,1757121050140,-480.0,0.00014246,2]
[383801674,1757121050151,-480.0,0.00014246,2]
[383801675,1757121050162,-297.75105167,0.00014246,2]
[383801676,1757121050173,-480.0,0.00014246,2]
[383801677,1757121050183,-480.0,0.00014246,2]
[383801678,1757121050192,-480.0,0.00014246,2]
[383801679,1757121050203,-480.0,0.00014246,2]
[383801680,1757121050213,-480.0,0.00014246,2]
[383801681,1757121050223,-480.0,0.00014246,2]
[383801682,1757121050233,-480.0,0.00014246,2]
[383801683,1757121050242,-167.17,0.00014246,2]
[383801684,1757121050252,-480.0,0.00014246,2]
[383801685,1757121050263,-480.0,0.00014246,2]
[383801686,1757121050274,-480.0,0.00014246,2]
[383801687,1757121050285,-480.0,0.00014246,2]
[383801688,1757121050298,-480.0,0.00014246,2]
[383801689,1757121050308,-480.0,0.00014246,2]
[383801690,1757121050319,-480.0,0.00014246,2]
[383801691,1757121050330,-262.86,0.00014246,2]
[383801692,1757121050342,-480.0,0.00014246,2]
[383801693,1757121050353,-480.0,0.00014246,2]
[383801694,1757121050363,-1732.91728868,0.00014246,2]
[383801695,1757121050372,-494.01,0.00014246,2]
[383801696,1757121050382,-480.0,0.00014246,2]
[383801697,1757121050391,-480.0,0.00014246,2]
[383801698,1757121050401,-480.0,0.00014246,2]
[383801699,1757121050411,-480.0,0.00014246,2]
[383801700,1757121050420,-481.89689575,0.00014246,2]
[383801701,1757121050430,-544.87367449,0.00014246,2]
[383801702,1757121050439,-480.0,0.00014246,2]
[383801703,1757121050449,-480.0,0.00014246,2]
[383801704,1757121050459,-480.0,0.00014246,2]
[383801705,1757121050469,-480.0,0.00014246,2]
[383801706,1757121050479,-480.0,0.00014246,2]
[383801707,1757121050488,-480.0,0.00014246,2]
[383801708,1757121050498,-480.0,0.00014246,2]
[383801709,1757121050507,-480.0,0.00014246,2]
[383801710,1757121050517,-480.0,0.00014246,2]
[383801711,1757121050528,-480.0,0.00014246,2]
[383801712,1757121050538,-108.31355638,0.00014246,2]
[383801713,1757121050890,-480.0,0.00013698,2]
[383801714,1757121050899,-129.09,0.00013698,2]
[383801715,1757121050910,-350.91,0.00013698,2]
[383801716,1757121050920,-480.0,0.00013972,2]
[383801717,1757121050929,-480.0,0.00013972,2]
[383801718,1757121050939,-480.0,0.00013972,2]
[383801719,1757121050948,-371.68644362,0.00014246,2]
[383801720,1757121050958,-480.0,0.00014246,2]
[383801721,1757121050967,-291.53,0.00014246,2]
[383801722,1757121050977,-480.0,0.00014246,2]
[383801723,1757121050986,-480.0,0.00014246,2]
[383801724,1757121050995,-480.0,0.00014246,2]
[383801725,1757121051006,-480.0,0.00014246,2]
[383801726,1757121051015,-480.0,0.00014246,2]
[383801727,1757121051025,-480.0,0.00014246,2]
[383801728,1757121051035,-480.0,0.00014246,2]
[383801729,1757121051045,-480.0,0.00014246,2]
[383801730,1757121051058,-154.88,0.00014246,2]
[383801731,1757121051068,-480.0,0.00014246,2]
[383801732,1757121051077,-480.0,0.00014246,2]
[383801733,1757121051087,-482.7155595,0.00014246,2]
[383801734,1757121051097,-484.18051698,0.00014246,2]
[383801735,1757121051107,-480.0,0.00014246,2]
[383801736,1757121051117,-480.0,0.00014246,2]
[383801737,1757121051127,-480.0,0.00014246,2]
[383801738,1757121051136,-480.0,0.00014246,2]
[383801739,1757121051145,-480.0,0.00014246,2]
[383801740,1757121051155,-480.0,0.00014246,2]
[383801741,1757121051164,-509.70687594,0.00014246,2]
[383801742,1757121051173,-480.0,0.00014246,2]
[383801743,1757121051183,-480.0,0.00014246,2]
[383801744,1757121051192,-480.0,0.00014246,2]
[383801745,1757121051202,-480.0,0.00014246,2]
[383801746,1757121051213,-302.5322839,0.00014246,2]
[383801747,1757121051222,-480.0,0.00014246,2]
[383801748,1757121051232,-481.69514704,0.00014246,2]
[383801749,1757121051241,-480.0,0.00014246,2]
[383801750,1757121051251,-480.0,0.00014246,2]
[383801751,1757121051261,-480.0,0.00014246,2]
[383801752,1757121051271,-480.0,0.00014246,2]
[383801753,1757121051280,-480.0,0.00014246,2]
[383801754,1757121051289,-36.73489062,0.00014246,2]
[383801755,1757121051411,1000.0,6.8e-07,120]
[383801756,1757121052471,1000.0,6.8e-07,120]
[383801757,1757121063249,1000.0,7.4e-07,120]
[383801758,1757121068612,-268.92041876,0.00013597,2]
[383801759,1757121070690,-31.07958124,0.00013597,2]
[383801760,1757121070712,-136.96277312,0.00013598,2]
[383801761,1757121082451,1000.0,7.4e-07,120]
[383801762,1757121088942,1000.0,7.4e-07,120]
[383801763,1757121092355,302.0,0.00027397,120]
[383801764,1757121107630,1000.0,7.4e-07,120]
[383801765,1757121114638,1000.0,7.4e-07,120]
[383801766,1757121123184,1000.0,7.4e-07,120]
[383801767,1757121130251,1000.0,7.4e-07,120]
[383801768,1757121137678,1000.0,7.4e-07,120]
[383801769,1757121144347,1000.0,7.4e-07,120]
[383801770,1757121150804,1000.0,7.4e-07,120]
[383801771,1757121157488,1000.0,7.4e-07,120]
[383801772,1757121165030,1000.0,7.4e-07,120]
[383801773,1757121169250,335.25,0.0001311,2]
[383801774,1757121175918,1000.0,7.4e-07,120]
[383801775,1757121182945,1000.0,7.4e-07,120]
[383801776,1757121189329,1000.0,7.4e-07,120]
[383801777,1757121196870,1000.0,7.4e-07,120]
[383801778,1757121206799,1000.0,7.4e-07,120]
[383801779,1757121213372,1000.0,7.4e-07,120]
[383801780,1757121220186,1000.0,7.4e-07,120]
[383801784,1757121269856,5000.0,0.00029002,67]
[383801785,1757121271092,-300.0,0.00013461,2]
[383801786,1757121271124,-300.0,0.00013597,2]
[383801787,1757121271681,-2664.13668794,0.00013598,2]
[383801788,1757121275250,-300.0,0.00013326,2]
[383801789,1757121281804,994.0,0.00013462,2]
[383801790,1757121309663,5000.0,0.00029002,65]
[383801792,1757121486817,1988.0,0.0001525,6]
[383801793,1757121495201,412.27753123,0.0001525,6]
[383801794,1757121504298,994.0,0.0001525,6]
[383801798,1757121755563,237.0,0.00027397,120]
[383801841,1757122127964,781.46253352,0.00013442,2]
[383801842,1757122129807,3122.72428394,0.00013442,2]
[383801843,1757122140323,2382.0,0.0001525,6]
[383801940,1757122156220,2082.0,0.0001525,6]
[383801962,1757122232785,-467.24433419,0.00013442,2]
[383801986,1757122238737,-227.80518936,0.00013442,2]
[383801988,1757122238747,-251.00488998,0.00013442,2]
[383802203,1757122240941,-874.95517256,0.00013442,2]
[383802205,1757122240952,-1597.59919671,0.00013442,2]
[383802215,1757122241038,-53.85863686,0.00013442,2]
[383802217,1757122241047,-168.0,0.00013583,2]
[383802219,1757122241057,-187.9157488,0.00013598,2]
[383802221,1757122241067,-1311.2787604,0.00013598,2]
[383802223,1757122241076,-300.0,0.00013672,2]
[383802225,1757122241085,-1200.0,0.00013672,2]
[383802227,1757122241095,-300.0,0.00013672,2]
[383802229,1757122241104,-500.0,0.00013673,2]
[383802231,1757122241114,-500.0,0.00013673,2]
[383802233,1757122241123,-265.83721839,0.00013673,2]
[383802235,1757122241133,-266.00856256,0.00013697,2]
[383802238,1757122241143,-166.72080306,0.00013697,2]
[383802240,1757122241153,-255.0,0.00013697,2]
[383802242,1757122241163,-297.2844444,0.00013697,2]
[383802244,1757122241172,-500.0,0.00013697,2]
[383802246,1757122241181,-500.0,0.00013697,2]
[383802248,1757122241193,-500.0,0.00013697,2]
[383802250,1757122241202,-480.0,0.00013698,2]
[383802252,1757122241211,-273.32416421,0.00013698,2]
[383802254,1757122241221,-480.0,0.00013698,2]
[383802256,1757122241230,-480.0,0.00013698,2]
[383802258,1757122241239,-480.0,0.00013698,2]
[383802260,1757122241248,-480.0,0.00013698,2]
[383802262,1757122241258,-549.13473647,0.00013698,2]
[383802264,1757122241267,-480.0,0.00013698,2]
[383802266,1757122241276,-480.0,0.00013698,2]
[383802268,1757122241285,-480.0,0.00013698,2]
[383802286,1757122241433,-582.46,0.00013698,2]
[383802288,1757122241442,-480.0,0.00013698,2]
[383802290,1757122241450,-480.0,0.00013698,2]
[383802292,1757122241459,-480.0,0.00013698,2]
[383802294,1757122241468,-480.0,0.00013698,2]
[383802296,1757122241477,-480.0,0.00013698,2]
[383802298,1757122241486,-480.0,0.00013698,2]
[383802300,1757122241494,-480.0,0.00013698,2]
[383802302,1757122241502,-480.0,0.00013698,2]
[383802303,1757122241511,-465.56476134,0.00013698,2]
[383802747,1757122246965,-14.43523866,0.00013698,2]
[383802749,1757122246975,-480.0,0.00013698,2]
[383802751,1757122246985,-480.0,0.00013698,2]
[383802753,1757122246994,-480.0,0.00013698,2]
[383802754,1757122247003,-480.0,0.00013698,2]
[383802755,1757122247013,-480.0,0.00013698,2]
[383802756,1757122247022,-480.0,0.00013698,2]
[383802757,1757122247032,-480.0,0.00013698,2]
[383802758,1757122247041,-480.0,0.00013698,2]
[383802759,1757122247051,-480.0,0.00013698,2]
[383802760,1757122247061,-480.0,0.00013698,2]
[383802761,1757122247073,-480.0,0.00013698,2]
[383802763,1757122247083,-242.91041578,0.00013698,2]
[383802765,1757122247096,-237.08958422,0.00013698,2]
[383802767,1757122247106,-160.56690651,0.00013698,2]
[383802772,1757122381125,168.0,0.0002899,60]
[383802775,1757122519384,968.2,0.0002739,120]
[383802776,1757122523484,1079.06863194,0.0002899,120]
[383802787,1757122632256,304.0,0.00027397,120]
[383802788,1757122736010,2223.57156625,0.0001525,6]
[383802800,1757123073345,-168.0,0.00013359,2]
[383802801,1757123073375,-4464.01,0.000135,2]
[383802802,1757123073460,-735.99,0.000135,2]
[383802803,1757123073490,-168.0,0.00013505,2]
[383802804,1757123073522,-300.0,0.00013596,2]
[383802805,1757123073608,-3429.83318254,0.00013597,2]
[383802806,1757123073639,-10000.01,0.00013597,2]
[383802851,1757123265596,6430.6809822,0.00012597,2]
[383802852,1757123279484,851.75646074,0.00027,120]
[383802853,1757123280274,205.7902874,0.00029032,60]
[383802854,1757123292467,1523.38721145,0.00013061,2]
[383802855,1757123316811,1523.38721145,0.00013061,2]
[383802856,1757123338957,522.5545949,0.00013061,2]
[383802857,1757123338981,1000.83261655,0.00013061,2]
[383802858,1757123347833,243.71,0.00012329,2]
[383802864,1757123362318,1523.38721145,0.00013061,2]
[383802865,1757123384501,1523.38721145,0.00013061,2]
[383802866,1757123407042,923.92888934,0.00013061,2]
[383802900,1757123431986,-705.01682703,0.00013193,2]
[383802901,1757123431998,-818.37038442,0.00013193,2]
[383802903,1757123432008,-217.07837449,0.00013259,2]
[383802905,1757123432017,-1209.53831312,0.00013497,2]
[383802907,1757123432026,-3000.0,0.000135,2]
[383802909,1757123432036,-737.65998741,0.0001359,2]
[383802911,1757123432045,-1200.0,0.00013594,2]
[383802913,1757123432054,-300.0,0.00013595,2]
[383802915,1757123432064,-1171.0,0.00013596,2]
[383802916,1757123432078,-300.0,0.00013596,2]
[383802917,1757123432087,-56648.75299113,0.00013597,2]
[383802918,1757123432097,-500.0,0.00013597,2]
[383802919,1757123432106,-219.32518367,0.00013597,2]
[383802920,1757123432116,-2388.84800266,0.00013611,2]
[383802921,1757123432125,-168.0,0.00013623,2]
[383802922,1757123432135,-168.0,0.00013667,2]
[383802923,1757123432144,-737.6599874,0.00013668,2]
[383802924,1757123432153,-500.0,0.00013673,2]
[383802925,1757123432163,-500.41672187,0.00013673,2]
[383802926,1757123432172,-501.27713034,0.00013673,2]
[383802927,1757123432181,-500.0,0.00013673,2]
[383802928,1757123432191,-157.0961657,0.00013688,2]
[383802929,1757123432200,-11945.39635073,0.00013688,2]
[383802930,1757123432215,-520.53481035,0.00013688,2]
[383802936,1757123437656,-505.7829744,0.000135,2]
[383802937,1757123437666,-503.59418447,0.00013596,2]
[383802938,1757123437675,-481.55674945,0.00013596,2]
[383802939,1757123437708,-18.44325055,0.00013596,2]
[383802940,1757123437718,-500.0,0.00013596,2]
[383802941,1757123437727,-506.1404477,0.00013596,2]
[383802942,1757123437736,-500.0,0.00013596,2]
[383802943,1757123437746,-500.0,0.00013596,2]
[383802944,1757123437755,-500.0,0.00013596,2]
[383802945,1757123437764,-500.0,0.00013596,2]
[383802946,1757123437774,-500.0,0.00013596,2]
[383802947,1757123437783,-500.0,0.00013596,2]
[383802948,1757123437792,-500.0,0.00013596,2]
[383802949,1757123437802,-500.0,0.00013596,2]
[383802950,1757123437811,-500.0,0.00013596,2]
[383802951,1757123437821,-398.92696616,0.00013596,2]
[383802952,1757123437830,-500.0,0.00013596,2]
[383802953,1757123437839,-500.0,0.00013596,2]
[383802954,1757123437849,-475.26392869,0.00013596,2]
[383802955,1757123437858,-500.0,0.00013596,2]
[383802956,1757123437868,-500.0,0.00013596,2]
[383802957,1757123437878,-500.0,0.00013596,2]
[383802958,1757123437888,-500.0,0.00013596,2]
[383802959,1757123437897,-374.48896692,0.00013596,2]